lending/lending_fUSD_20260110
["ID","MTS","AMOUNT","RATE_DAILY","PERIOD"]
[401208542,1768044654663,-177.21892515,0.00018,2]
[401208543,1768044654673,-157.59943203,0.00018,2]
[401208544,1768044654682,-36284.21370724,0.00018,2]
[401208545,1768044655264,-787.36629238,0.00018,2]
[401208546,1768044655276,-3342.46626735,0.00018,2]
[401208547,1768044655299,-754.07848955,0.00018,2]
[401208548,1768044655311,-20556.26312643,0.00018,2]
[401208549,1768044655550,-1119.9698822,0.00018,2]
[401208550,1768044655570,-1361.82,0.00018,2]
[401208551,1768044655585,-315.8329995,0.00018,2]
[401208552,1768044655631,-13384.60655758,0.00018,2]
[401208553,1768044655642,-19138.23941,0.00018,2]
[401208554,1768044655656,-2447.56425142,0.00018,2]
[401208555,1768044655669,-537287.01940085,0.00018,2]
[401208556,1768044655680,-1146696.87149209,0.00018,2]
[401208557,1768044655691,-5346.06634884,0.00018,2]
[401208558,1768044655702,-974149.39687302,0.00018,2]
[401208559,1768044656117,-1.7e-07,0.00018,2]
[401208560,1768044656414,-354.248635,0.00015297,2]
[401208561,1768044656426,-145.751365,0.00015297,2]
[401208562,1768044656436,-327.83283484,0.00015297,2]
[401208563,1768044656475,-172.16716516,0.00015297,2]
[401208564,1768044656485,-500.0,0.00015297,2]
[401208565,1768044656495,-500.0,0.00015297,2]
[401208566,1768044656504,-455.71446841,0.00015297,2]
[401208567,1768044656518,-500.0,0.00015297,2]
[401208568,1768044656528,-500.0,0.00015297,2]
[401208569,1768044656538,-500.0,0.00015297,2]
[401208570,1768044656548,-500.0,0.00015297,2]
[401208571,1768044656559,-500.0,0.00015297,2]
[401208572,1768044656570,-447.79,0.0001606,2]
[401208573,1768044656579,-537.34,0.00017046,2]
[401208574,1768044656589,-2097.82966342,0.00018,2]
[401208575,1768044656602,-2578.79651364,0.00018,2]
[401208576,1768044656615,-261.96904595,0.00018,2]
[401208577,1768044656630,-385.2974996,0.00018,2]
[401208578,1768044656662,-500.0,0.00015297,2]
[401208579,1768044656673,-500.0,0.00015297,2]
[401208580,1768044656685,-134.975,0.00018,2]
[401208581,1768044656995,-500.0,0.00015297,2]
[401208582,1768044657317,-500.0,0.00015297,2]
[401208583,1768044657328,-500.0,0.00015297,2]
[401208584,1768044657338,-500.0,0.00015297,2]
[401208585,1768044657350,-500.0,0.00015297,2]
[401208586,1768044657359,-430.88281439,0.00015297,2]
[401208587,1768044657371,-537.34,0.00017268,2]
[401208588,1768044657383,-238.82,0.00017518,2]
[401208589,1768044657393,-238.82,0.00017545,2]
[401208590,1768044657403,-11684.52991275,0.00018,2]
[401208591,1768044657416,-14186.36020262,0.00018,2]
[401208592,1768044657427,-35169.77845882,0.00018,2]
[401208593,1768044657444,-5405.67108242,0.00018,2]
[401208594,1768044657465,-3252.75000005,0.00018,2]
[401208595,1768044657477,-508.31709661,0.00018,2]
[401208596,1768044681401,-621.2467606,0.00015198,2]
[401208597,1768044683562,-889.27260925,0.00015198,2]
[401208598,1768044686233,-240.01522619,0.00015198,2]
[401208599,1768044688355,-189.01438501,0.00015198,2]
[401208600,1768044690646,-167.55253785,0.00015198,2]
[401208601,1768044692572,-290.29070041,0.00015198,2]
[401208602,1768044695203,-172.36715775,0.00015198,2]
[401208603,1768044697494,-178.7485779,0.00015198,2]
[401208604,1768044699006,-339.55340806,0.00015198,2]
[401208605,1768044700648,-500.0,0.00015198,2]
[401208606,1768044702190,-293.24253653,0.00015198,2]
[401208607,1768044703674,-438.83419989,0.00015198,2]
[401208608,1768044705170,-304.05069773,0.00015198,2]
[401208609,1768044706704,-300.0,0.00015198,2]
[401208610,1768044708851,-250.0,0.00015198,2]
[401208611,1768044710864,-300.0,0.00015198,2]
[401208612,1768044712927,-295.63868731,0.00015198,2]
[401208613,1768044713600,-1000.0,0.00015198,2]
[401208614,1768044715443,-344.84854812,0.00015198,2]
[401208615,1768044715802,-1000.0,0.00015198,2]
[401208616,1768044716893,-1000.0,0.00015198,2]
[401208617,1768044716968,-305.85712123,0.00015198,2]
[401208618,1768044717834,-1000.0,0.00015198,2]
[401208619,1768044718738,-240.98664617,0.00015198,2]
[401208620,1768044718765,-759.01335383,0.000153,5]
[401208621,1768044719794,-1000.0,0.000153,5]
[401208622,1768044720931,-1000.0,0.000153,5]
[401208623,1768044721970,-1000.0,0.000153,5]
[401208624,1768044723375,-1000.0,0.000153,5]
[401208625,1768044724451,-772.98664617,0.000153,5]
[401208626,1768044724472,-227.01335383,0.00015642,2]
[401208627,1768044725630,-22.98664617,0.00015642,2]
[401208628,1768044759450,-281.62,0.00015198,2]
[401208629,1768044761922,-183.61543705,0.00015198,2]
[401208630,1768044767020,-345.87696134,0.00015198,2]
[401208631,1768044771076,1464.71439087,0.00023,120]
[401208632,1768044771235,-709.40178502,0.00015198,2]
[401208633,1768044775089,-379.58649723,0.00015198,2]
[401208634,1768044776116,-84.59851936,0.00015198,2]
[401208635,1768044776143,-165.7434652,0.00015198,2]
[401208636,1768044778277,-343.65027282,0.00015198,2]
[401208637,1768044779021,-1000.0,0.00015198,2]
[401208638,1768044780301,-1000.0,0.00015198,2]
[401208639,1768044781007,-270.83112151,0.00015198,2]
[401208640,1768044781341,-1000.0,0.00015198,2]
[401208641,1768044781812,300.0,0.00015197,2]
[401208642,1768044782074,150.0,0.00015197,2]
[401208643,1768044782282,-1000.0,0.00015198,2]
[401208644,1768044783349,-225.77854245,0.00015198,2]
[401208645,1768044783389,-1000.0,0.00015198,2]
[401208646,1768044784621,-1000.0,0.00015198,2]
[401208647,1768044786096,-1000.0,0.00015198,2]
[401208648,1768044786365,-263.40369689,0.00015198,2]
[401208649,1768044786923,-1000.0,0.00015198,2]
[401208650,1768044787196,2362.68136507,0.000226,120]
[401208651,1768044787984,-1000.0,0.00015198,2]
[401208652,1768044788911,-363.40227131,0.00015198,2]
[401208653,1768044789049,-1000.0,0.00015198,2]
[401208654,1768044790021,-1000.0,0.00015198,2]
[401208655,1768044791050,-1000.0,0.00015198,2]
[401208656,1768044791172,-294.27108077,0.00015198,2]
[401208657,1768044792064,-1000.0,0.00015198,2]
[401208658,1768044793148,-1000.0,0.00015198,2]
[401208659,1768044793184,-443.43511023,0.00015198,2]
[401208660,1768044794045,-1000.0,0.00015198,2]
[401208661,1768044794993,-1000.0,0.00015198,2]
[401208662,1768044795991,-1000.0,0.00015198,2]
[401208663,1768044797032,-266.0,0.00015197,2]
[401208664,1768044797057,-734.0,0.00015198,2]
[401208665,1768044797847,-1000.0,0.00015198,2]
[401208666,1768044798882,-1000.0,0.00015198,2]
[401208667,1768044799810,-1000.0,0.00015198,2]
[401208668,1768044800720,-1000.0,0.00015198,2]
[401208669,1768044801624,-1000.0,0.00015198,2]
[401208670,1768044802607,-1000.0,0.00015198,2]
[401208671,1768044803492,-1000.0,0.00015198,2]
[401208672,1768044804421,-1000.0,0.00015198,2]
[401208673,1768044805440,-1000.0,0.00015198,2]
[401208674,1768044806372,-1000.0,0.00015198,2]
[401208675,1768044807694,-1000.0,0.00015198,2]
[401208676,1768044808407,-1000.0,0.00015198,2]
[401208677,1768044811491,2186.1,8.591e-05,2]
[401208678,1768044811696,2186.1,9.025e-05,2]
[401208679,1768044812210,2186.1,9.459e-05,2]
[401208680,1768044812260,2186.1,9.894e-05,2]
[401208681,1768044812297,1255.61,0.00010328,2]
[401208682,1768044812317,930.49,0.00010328,2]
[401208683,1768044812515,2186.1,0.00010763,2]
[401208684,1768044812702,2186.1,0.00011197,2]
[401208685,1768044812892,2186.1,0.00011631,2]
[401208686,1768044813089,2186.1,0.00012066,2]
[401208687,1768044813294,325.12,0.000125,2]
[401208688,1768044813316,1860.98,0.000125,2]
[401208689,1768044813499,2186.1,0.00012935,2]
[401208690,1768044813689,2186.1,0.00013369,2]
[401208691,1768044813890,2186.1,0.00013804,2]
[401208692,1768044814093,1580.73,0.00014238,2]
[401208693,1768044814115,605.37,0.00014238,2]
[401208694,1768044814308,2186.1,0.00014672,2]
[401208695,1768044814501,2186.1,0.00015107,2]
[401208696,1768044814547,-350.0,0.00015198,2]
[401208697,1768044816016,-370.14968596,0.00015198,2]
[401208698,1768044818434,-174.54690617,0.00015198,2]
[401208699,1768044821019,-195.0,0.00015198,2]
[401208700,1768044823686,-365.97810717,0.00015198,2]
[401208701,1768044825281,-364.91422489,0.00015198,2]
[401208702,1768044826751,-169.57086422,0.00015198,2]
[401208703,1768044827773,4969.69969437,0.000226,120]
[401208704,1768044829167,-253.1701093,0.00015198,2]
[401208705,1768044830601,-172.95377143,0.00015198,2]
[401208706,1768044832728,-207.62401564,0.00015198,2]
[401208707,1768044833201,946.344357,0.00015122,2]
[401208708,1768044834121,-230.39716007,0.00015198,2]
[401208709,1768044837871,-250.0,0.00015198,2]
[401208710,1768044840220,-569.43,0.00015198,2]
[401208711,1768044841231,300.0,0.00015197,2]
[401208712,1768044841320,-280.3278616,0.00015198,2]
[401208713,1768044842743,-280.57,0.00015198,2]
[401208714,1768044850766,-423.18869119,0.00015198,2]
[401208715,1768044852346,-366.23046181,0.00015198,2]
[401208716,1768044855529,-441.03587444,0.00015198,2]
[401208717,1768044856966,-235.95137901,0.00015198,2]
[401208718,1768044858493,-424.01788079,0.00015198,2]
[401208719,1768044861839,-198.84160383,0.00015198,2]
[401208720,1768044862090,171.78712264,0.00015109,2]
[401208721,1768044863363,-309.3320007,0.00015198,2]
[401208722,1768044865976,-202.81075899,0.00015198,2]
[401208723,1768044869255,-343.46428555,0.00015198,2]
[401208724,1768044870806,-317.65263784,0.00015198,2]
[401208725,1768044872460,-258.6558289,0.00015198,2]
[401208726,1768044873663,1094.63419105,0.00013079,2]
[401208727,1768044875542,-344.86524192,0.00015198,2]
[401208728,1768044877696,-300.0,0.00015198,2]
[401208729,1768044881459,-500.0,0.00015198,2]
[401208730,1768044883699,-406.26850055,0.00015198,2]
[401208731,1768044885266,-168.55888683,0.00015198,2]
[401208732,1768044889075,-262.8601924,0.00015198,2]
[401208733,1768044890518,-1000.04055834,0.00015198,2]
[401208734,1768044893297,-188.43739283,0.00015198,2]
[401208735,1768044895718,-319.51363937,0.00015198,2]
[401208736,1768044896643,2509.67432931,0.00015109,2]
[401208737,1768044896668,7804.33547696,0.00015109,2]
[401208738,1768044897796,-390.97888552,0.00015198,2]
[401208739,1768044900756,-172.83258673,0.00015198,2]
[401208740,1768044901259,300.0,0.00015197,2]
[401208741,1768044901294,1200.0,0.00015197,2]
[401208742,1768044901362,300.0,0.00015197,2]
[401208743,1768044902234,-327.35102196,0.00015198,2]
[401208744,1768044905332,-285.11861132,0.00015198,2]
[401208745,1768044906885,-265.35230462,0.00015198,2]
[401208746,1768044911717,-199.82489782,0.00015198,2]
[401208747,1768044913738,-158.5071362,0.00015198,2]
[401208748,1768044916956,-1000.0,0.00015198,2]
[401208749,1768044917062,-311.08932954,0.00015198,2]
[401208750,1768044918281,-166.66,0.00015198,2]
[401208751,1768044918644,-1000.0,0.00015198,2]
[401208752,1768044920368,-1000.0,0.00015198,2]
[401208753,1768044921749,-1000.0,0.00015198,2]
[401208754,1768044923120,-1000.0,0.00015198,2]
[401208755,1768044934316,395.67452304,0.00012951,2]
[401208756,1768044934341,65.06609461,0.00012951,2]
[401208757,1768044938183,164.90676881,0.00015109,2]
[401208758,1768044942738,206.34141503,0.00015109,2]
[401208759,1768044961297,300.0,0.00015197,2]
[401208760,1768044962080,300.0,0.00015197,2]
[401208761,1768044962112,300.0,0.00015197,2]
[401208762,1768044966825,8663.69572155,0.00015188,2]
[401208763,1768044966848,2142.263338,0.00015188,2]
[401208764,1768044982211,500.0,0.00015197,2]
[401208765,1768044982245,500.0,0.00015197,2]
[401208766,1768044982282,500.0,0.00015197,2]
[401208767,1768044982409,500.0,0.00015197,2]
[401208768,1768044982443,500.0,0.00015197,2]
[401208769,1768044982475,500.0,0.00015197,2]
[401208770,1768044982512,500.0,0.00015197,2]
[401208771,1768044982545,500.0,0.00015197,2]
[401208772,1768044982578,500.0,0.00015197,2]
[401208773,1768044982612,500.0,0.00015197,2]
[401208774,1768044982671,500.0,0.00015197,2]
[401208775,1768044982705,500.0,0.00015197,2]
[401208776,1768044982740,500.0,0.00015197,2]
[401208777,1768044982776,500.0,0.00015197,2]
[401208778,1768044982809,500.0,0.00015197,2]
[401208779,1768044982843,357.746662,0.00015197,2]
[401208780,1768044982869,142.253338,0.00015197,2]
[401208781,1768044982903,500.0,0.00015197,2]
[401208782,1768044982936,500.0,0.00015197,2]
[401208783,1768044982973,500.0,0.00015197,2]
[401208784,1768044983007,500.0,0.00015197,2]
[401208785,1768044983042,500.0,0.00015197,2]
[401208786,1768044983078,500.0,0.00015197,2]
[401208787,1768044983117,500.0,0.00015197,2]
[401208788,1768044983152,500.0,0.00015197,2]
[401208789,1768044983203,500.0,0.00015197,2]
[401208790,1768044983244,500.0,0.00015197,2]
[401208791,1768044983280,500.0,0.00015197,2]
[401208792,1768044983317,500.0,0.00015197,2]
[401208793,1768044983359,500.0,0.00015197,2]
[401208794,1768044983405,500.0,0.00015197,2]
[401208795,1768044983446,500.0,0.00015197,2]
[401208796,1768044983481,500.0,0.00015197,2]
[401208797,1768044983515,500.0,0.00015197,2]
[401208798,1768044983551,500.0,0.00015197,2]
[401208799,1768044983586,500.0,0.00015197,2]
[401208800,1768044983623,357.756662,0.00015197,2]
[401208801,1768044983651,142.243338,0.00015197,2]
[401208802,1768044983691,500.0,0.00015197,2]
[401208803,1768044983738,500.0,0.00015197,2]
[401208804,1768044983773,509.39812676,0.00015197,2]
[401208805,1768044983809,500.0,0.00015197,2]
[401208806,1768044983853,500.0,0.00015197,2]
[401208807,1768044983893,500.0,0.00015197,2]
[401208808,1768044983930,500.0,0.00015197,2]
[401208809,1768044983972,500.0,0.00015197,2]
[401208810,1768044984009,500.0,0.00015197,2]
[401208811,1768044984059,500.0,0.00015197,2]
[401208812,1768044984095,500.0,0.00015197,2]
[401208813,1768044991188,164.90676881,0.00015109,2]
[401208814,1768045004700,500.0,0.00015197,2]
[401208815,1768045004734,500.0,0.00015197,2]
[401208816,1768045004768,500.0,0.00015197,2]
[401208817,1768045004810,500.0,0.00015197,2]
[401208818,1768045004845,500.0,0.00015197,2]
[401208819,1768045004881,500.0,0.00015197,2]
[401208820,1768045004915,500.0,0.00015197,2]
[401208821,1768045005308,500.0,0.00015197,2]
[401208822,1768045005346,183.46176643,0.00015197,2]
[401208823,1768045005373,316.53823357,0.00015197,2]
[401208824,1768045005411,500.0,0.00015197,2]
[401208825,1768045005448,500.0,0.00015197,2]
[401208826,1768045005491,500.0,0.00015197,2]
[401208827,1768045005526,500.0,0.00015197,2]
[401208828,1768045005567,500.0,0.00015197,2]
[401208829,1768045005603,500.0,0.00015197,2]
[401208830,1768045005641,500.0,0.00015197,2]
[401208831,1768045005678,500.0,0.00015197,2]
[401208832,1768045005710,500.0,0.00015197,2]
[401208833,1768045005745,500.0,0.00015197,2]
[401208834,1768045005783,500.0,0.00015197,2]
[401208835,1768045005818,500.0,0.00015197,2]
[401208836,1768045005854,500.0,0.00015197,2]
[401208837,1768045005891,500.0,0.00015197,2]
[401208838,1768045005924,500.0,0.00015197,2]
[401208839,1768045005966,500.0,0.00015197,2]
[401208840,1768045006000,500.0,0.00015197,2]
[401208841,1768045006034,500.0,0.00015197,2]
[401208842,1768045006067,500.0,0.00015197,2]
[401208843,1768045006102,183.47176643,0.00015197,2]
[401208844,1768045006131,316.52823357,0.00015197,2]
[401208845,1768045026459,151.0,0.00015198,2]
[401208846,1768045026791,200.0,0.00015198,2]
[401208847,1768045027124,151.0,0.00015198,2]
[401208848,1768045027852,151.0,0.00015198,2]
[401208849,1768045028567,151.0,0.00015198,2]
[401208850,1768045029245,151.0,0.00015198,2]
[401208851,1768045029920,151.0,0.00015198,2]
[401208852,1768045029984,151.0,0.00015198,2]
[401208853,1768045030667,151.0,0.00015198,2]
[401208854,1768045030738,151.0,0.00015198,2]
[401208855,1768045031361,151.0,0.00015198,2]
[401208856,1768045031441,151.0,0.00015198,2]
[401208857,1768045032033,151.0,0.00015198,2]
[401208858,1768045032128,151.0,0.00015198,2]
[401208859,1768045032731,151.0,0.00015198,2]
[401208860,1768045032894,151.0,0.00015198,2]
[401208861,1768045033400,151.0,0.00015198,2]
[401208862,1768045033532,216.98407989,0.00015173,2]
[401208863,1768045033573,151.0,0.00015198,2]
[401208864,1768045034549,500.0,0.00015173,2]
[401208865,1768045034651,501.71026142,0.00015173,2]
[401208866,1768045034695,151.0,0.00015198,2]
[401208867,1768045034733,151.0,0.00015198,2]
[401208868,1768045034786,486.6129027,0.00015173,2]
[401208869,1768045034831,151.0,0.00015198,2]
[401208870,1768045034965,151.0,0.00015198,2]
[401208871,1768045035140,500.0,0.00015173,2]
[401208872,1768045035455,151.0,0.00015198,2]
[401208873,1768045035694,151.0,0.00015198,2]
[401208874,1768045036129,151.0,0.00015198,2]
[401208875,1768045036159,500.0,0.00015173,2]
[401208876,1768045036389,151.0,0.00015198,2]
[401208877,1768045036722,750.332204,0.00015122,2]
[401208878,1768045036760,151.0,0.00015198,2]
[401208879,1768045037096,151.0,0.00015198,2]
[401208880,1768045037640,500.0,0.00015198,2]
[401208881,1768045037873,151.0,0.00015198,2]
[401208882,1768045038025,500.5237602,0.00015173,2]
[401208883,1768045038275,500.0,0.00015198,2]
[401208884,1768045038536,151.0,0.00015198,2]
[401208885,1768045038651,148.31855822,0.00015173,2]
[401208886,1768045038684,351.68144178,0.00015173,2]
[401208887,1768045038790,500.0,0.00015198,2]
[401208888,1768045039157,169.12378955,0.00015173,2]
[401208889,1768045039256,151.0,0.00015198,2]
[401208890,1768045039534,500.0,0.00015198,2]
[401208891,1768045046124,-500.0,0.00015173,2]
[401208892,1768045046155,-162.54529449,0.00015173,2]
[401208893,1768045046186,-151.0,0.00015198,2]
[401208894,1768045046216,-500.0,0.00015198,2]
[401208895,1768045046247,-500.0,0.00015198,2]
[401208896,1768045046279,-500.0,0.00015198,2]
[401208897,1768045046312,-633.89985627,0.00015198,2]
[401208898,1768045046343,-500.0,0.00015198,2]
[401208899,1768045047509,-795.81937201,0.00015198,2]
[401208900,1768045047585,-10000.01,0.00015198,2]
[401208901,1768045047602,-10000.01,0.00015198,2]
[401208902,1768045047694,-10000.01,0.00015198,2]
[401208903,1768045047709,-10000.01,0.00015198,2]
[401208904,1768045047734,-10000.01,0.00015198,2]
[401208905,1768045047752,-10000.01,0.00015198,2]
[401208906,1768045062269,-10000.01,0.00015198,2]
[401208907,1768045062381,-10000.01,0.00015198,2]
[401208908,1768045062458,-10000.01,0.00015198,2]
[401208909,1768045075648,-1374.3491403,0.00015,2]
[401208910,1768045111616,-1270.59513788,0.00015098,2]
[401208911,1768045111651,-206.34141503,0.00015109,2]
[401208912,1768045111682,-500.0,0.00015173,2]
[401208913,1768045111712,-163.36876424,0.00015173,2]
[401208914,1768045111740,-500.0,0.00015173,2]
[401208915,1768045111768,-500.0,0.00015173,2]
[401208916,1768045111796,-500.0,0.00015173,2]
[401208917,1768045111827,-500.0,0.00015173,2]
[401208918,1768045111856,-500.0,0.00015173,2]
[401208919,1768045111884,-219.3993657,0.00015173,2]
[401208920,1768045112038,-280.6006343,0.00015173,2]
[401208921,1768045130925,-500.0,0.00015173,2]
[401208922,1768045130955,-166.31973401,0.00015173,2]
[401208923,1768045130984,-500.0,0.00015173,2]
[401208924,1768045131011,-500.0,0.00015173,2]
[401208925,1768045131040,-500.0,0.00015173,2]
[401208926,1768045131071,-300.0,0.00015197,2]
[401208927,1768045131099,-1200.0,0.00015197,2]
[401208928,1768045131211,-2667.37053198,0.00015198,2]
[401208929,1768045144896,-300.0,0.00015197,2]
[401208930,1768045144929,-300.0,0.00015197,2]
[401208931,1768045145065,-8800.01,0.00015198,2]
[401208932,1768045157840,200.366694,0.00014,2]
[401208933,1768045200032,-1000.0,0.00015098,2]
[401208934,1768045201379,-1000.0,0.00015098,2]
[401208935,1768045202581,-1000.0,0.00015098,2]
[401208936,1768045203604,-275.0,0.00015098,2]
[401208937,1768045203628,-725.0,0.00015098,2]
[401208938,1768045204789,-1.2263,0.00015098,2]
[401208939,1768045204817,-300.0,0.00015172,2]
[401208940,1768045204841,-698.7737,0.00015172,2]
[401208941,1768045206139,-501.2263,0.00015172,2]
[401208942,1768045206171,-300.0,0.00015172,2]
[401208943,1768045206195,-198.7737,0.00015173,2]
[401208944,1768045207454,-301.2263,0.00015173,2]
[401208945,1768045207478,-500.0,0.00015173,2]
[401208946,1768045207514,-198.7737,0.00015173,2]
[401208947,1768045208729,-301.2263,0.00015173,2]
[401208948,1768045208753,-500.0,0.00015173,2]
[401208949,1768045208777,-198.7737,0.00015173,2]
[401208950,1768045210616,-301.2263,0.00015173,2]
[401208951,1768045210638,-698.7737,0.00015198,2]
[401208952,1768045211937,-500.0,0.00015173,2]
[401208953,1768045211958,-500.0,0.00015198,2]
[401208954,1768045213355,-500.0,0.00015173,2]
[401208955,1768045213388,-500.0,0.00015173,2]
[401208956,1768045214949,-500.0,0.00015173,2]
[401208957,1768045214972,-500.0,0.00015173,2]
[401208958,1768045216305,-500.0,0.00015173,2]
[401208959,1768045216328,-333.13533576,0.00015173,2]
[401208960,1768045216349,-166.86466424,0.00015173,2]
[401208961,1768045217765,-272.65203115,0.00015173,2]
[401208962,1768045217788,-727.34796885,0.00015188,2]
[401208963,1768045219302,-710.85104621,0.00015188,2]
[401208964,1768045219329,-289.14895379,0.00015198,2]
[401208965,1768045221186,-1000.0,0.00015198,2]
[401208966,1768045222391,-1000.0,0.00015198,2]
[401208967,1768045223687,-1000.0,0.00015198,2]
[401208968,1768045224965,-1000.0,0.00015198,2]
[401208969,1768045226517,-1000.0,0.00015198,2]
[401208970,1768045227629,-1000.0,0.00015198,2]
[401208971,1768045229548,-1000.0,0.00015198,2]
[401208972,1768045231128,-1000.0,0.00015198,2]
[401208973,1768045232441,-1000.0,0.00015198,2]
[401208974,1768045233810,-1000.0,0.00015198,2]
[401208975,1768045235131,-1000.0,0.00015198,2]
[401208976,1768045236406,-1000.0,0.00015198,2]
[401208977,1768045237655,-1000.0,0.00015198,2]
[401208978,1768045238855,-1000.0,0.00015198,2]
[401208979,1768045240081,-1000.0,0.00015198,2]
[401208980,1768045241447,-1000.0,0.00015198,2]
[401208981,1768045242902,-1000.0,0.00015198,2]
[401208982,1768045244064,-1000.0,0.00015198,2]
[401208983,1768045245184,-1000.0,0.00015198,2]
[401208984,1768045246521,-1000.0,0.00015198,2]
[401208985,1768045314979,-320.29133073,0.00015069,2]
[401208986,1768045316929,1101.0,0.00014316,2]
[401208987,1768045321958,1101.0,0.000136,2]
[401208988,1768045326868,1098.0,0.0001292,2]
[401208989,1768045350176,-780.70866927,0.00015069,2]
[401208990,1768045350199,-219.29133073,0.00015098,2]
[401208991,1768045351583,-1000.0,0.00015098,2]
[401208992,1768045352690,-1000.0,0.00015098,2]
[401208993,1768045353769,-398.22955714,0.00015098,2]
[401208994,1768045353791,-601.77044286,0.00015098,2]
[401208995,1768045354848,-1000.0,0.00015098,2]
[401208996,1768045355899,-898.22955714,0.00015098,2]
[401208997,1768045355922,-101.77044286,0.00015098,2]
[401208998,1768045357062,-1000.0,0.00015098,2]
[401208999,1768045358198,-1000.0,0.00015098,2]
[401209000,1768045359300,-1000.0,0.00015098,2]
[401209001,1768045360426,-1000.0,0.00015098,2]
[401209002,1768045365793,-1000.0,0.00015098,2]
[401209003,1768045366969,-1000.0,0.00015098,2]
[401209004,1768045405083,-300.0,0.00015097,2]
[401209005,1768045405106,-700.0,0.00015098,2]
[401209006,1768045433090,-1000.0,0.00015078,2]
[401209007,1768045434508,-1000.0,0.00015078,2]
[401209008,1768045435681,-1000.0,0.00015078,2]
[401209009,1768045437223,-1000.0,0.00015078,2]
[401209010,1768045439499,-1000.0,0.00015078,2]
[401209011,1768045439702,-1000.0,0.00015078,2]
[401209012,1768045440874,-1000.0,0.00015078,2]
[401209013,1768045442102,-1000.0,0.00015078,2]
[401209014,1768045443383,-1000.0,0.00015078,2]
[401209015,1768045444529,-1000.0,0.00015078,2]
[401209016,1768045446054,-1000.0,0.00015078,2]
[401209017,1768045447163,-1000.0,0.00015078,2]
[401209018,1768045461231,6700.01,0.00014481,2]
[401209019,1768045461254,10000.01,0.00014481,2]
[401209020,1768045461277,3961.85,0.00014481,2]
[401209021,1768045531971,-3705.14,0.00015078,2]
[401209022,1768045546152,-2589.73,0.00015078,2]
[401209023,1768045546184,-204.30929403,0.00015083,2]
[401209024,1768045546216,-300.0,0.00015088,2]
[401209025,1768045546247,-300.0,0.00015097,2]
[401209026,1768045546279,-1200.0,0.00015097,2]
[401209027,1768045546316,-300.0,0.00015097,2]
[401209028,1768045552224,-300.0,0.00015097,2]
[401209029,1768045552254,-156.22204203,0.00015098,2]
[401209030,1768045559231,-7743.78795797,0.00015098,2]
[401209031,1768045565768,-10000.01,0.00015098,2]
[401209032,1768045613131,-396.46910108,0.00015098,2]
[401209033,1768045625642,150.1,0.00013545,2]
[401209034,1768045630178,1361.94,0.00014434,2]
[401209035,1768045650071,-489.20930786,0.00015073,2]
[401209036,1768045650107,-300.0,0.00015097,2]
[401209037,1768045650140,-250.0,0.00015098,2]
[401209038,1768045650169,-156.22204203,0.00015098,2]
[401209039,1768045650310,-6097.10730022,0.00015098,2]
[401209040,1768045663734,-1897.91,0.00014438,2]
[401209041,1768045663764,-2541.23749787,0.00015098,2]